Cogmind - Beta 14 @@@ ROGUE MODE // 2024.10.27 @ 10:54:43 Player: Kate+Gabe4evr Result: Destroyed by Y-54 Guardian with Gatling Laser Performance ------------- Evolutions (4) 2000 Regions Visited (6) 1200 Robots Destroyed (40) 200 Value Destroyed (1348) 1348 Prototype IDs (4) 80 Alien Tech Used (0) 0 Bonus (200) 200 TOTAL SCORE: 5028 Bonus ------- Entered Garrisons 200 Cogmind --------- Core Integrity 0/850 Matter 27/300 Energy 100/100 System Corruption 2% Temperature Cool (12) Movement Core (50) Location -6/Garrison Parts ------- > --- POWER (1) -------- (None) > --- PROPULSION (4) --- (None) > --- UTILITY (8) ------ Visual Processing Unit Enhanced Optical Array Signal Interpreter Targeting Computer > --- WEAPON (2) ------- (None) > --- INVENTORY (5) ---- Matter Compressor (0) Transmission Jammer Mini Grenade Launcher Plasma Cutter Maul Peak State ------------ > --- POWER ------------ Light Fission Core > --- PROPULSION ------- Carbon-fiber Leg VSS Leg Flexi-carbon Leg Armored Leg > --- UTILITY ---------- Small Storage Unit Visual Processing Unit Enhanced Optical Array Signal Interpreter Targeting Computer Improved Targeting Computer Improved Particle Charger High-powered Tractor Beam > --- WEAPON ----------- Gauss Rifle Gauss Rifle > --- INVENTORY -------- Improved Deuterium Engine Flexi-carbon Leg Matter Compressor Transmission Jammer Magnetic Acceleration Cannon Mini Grenade Launcher Plasma Cutter Maul [Rating: 51] Favorites ----------- Power Light Deuterium Engine Engine Light Deuterium Engine Power Core Light Fission Core Propulsion Aluminum Leg Leg Aluminum Leg Utility Visual Processing Unit Device Tractor Beam Storage Small Storage Unit Processor Visual Processing Unit Weapon Improved Assault Rifle Energy Gun Improved EM Shotgun Ballistic Gun Improved Assault Rifle Ballistic Cannon Magnetic Acceleration Cannon Impact Weapon Maul Build | -11 -10 -9 -8 -7 -6 -6 ------- Run | Yrd Mat Mat Mat Fac Fac Gar Slots Evolved 8 | . . 2 2 2 2 . Power . | . . . . . . . Propulsion 2 | . . 1 . 1 . . Utility 6 | . . 1 2 1 2 . Weapon . | . . . . . . . Parts Attached 68 | 6 14 10 19 3 16 . Power 8 | 1 2 . 2 . 3 . Engine 4 | 1 1 . 2 . . . Core 4 | . 1 . . . 3 . Reactor . | . . . . . . . Propulsion 24 | 2 4 4 8 1 5 . Treads . | . . . . . . . Leg 24 | 2 4 4 8 1 5 . Wheel . | . . . . . . . Hover . | . . . . . . . Flight . | . . . . . . . Utility 13 | 1 1 1 4 1 5 . Device 4 | . . 1 . 1 2 . Storage 1 | 1 . . . . . . Processor 8 | . 1 . 4 . 3 . Hackware . | . . . . . . . Protection . | . . . . . . . Artifact . | . . . . . . . Weapon 23 | 2 7 5 5 1 3 . Energy Gun 1 | . . 1 . . . . Energy Cannon . | . . . . . . . Ballistic Gun 20 | 2 7 4 4 1 2 . Ballistic Cannon 1 | . . . . . 1 . Launcher . | . . . . . . . Special Weapon . | . . . . . . . Impact Weapon 1 | . . . 1 . . . Slashing Weapon . | . . . . . . . Piercing Weapon . | . . . . . . . Special Melee Weapon . | . . . . . . . Unidentified Prototypes 4 | . 1 2 . . 1 . Parts Lost 19 | . . 2 1 . 15 1 Power 3 | . . . . . 3 . Propulsion 7 | . . 2 . . 5 . Utility 7 | . . . 1 . 5 1 Weapon 2 | . . . . . 2 . Highest Loss Streak 5 | . . 1 1 . 5 1 To Critical Strikes . | . . . . . . . Average Slot Usage (%) 94 | . 94 94 99 100 88 34 Engine 6 | . 4 11 8 7 1 . Core 2 | . 9 . . . 4 . Leg 26 | . 27 32 26 30 21 3 Device 4 | . . 6 4 7 7 . Storage 8 | . 14 11 9 7 3 . Processor 25 | . 10 11 31 30 36 31 Ballistic Gun 17 | . 27 22 17 15 9 . Peak Build Rating 51 | 6 13 16 28 34 51 15 Average Rating 24 | 4 10 14 22 33 42 13 On Entrance 16 | . 6 13 16 28 34 15 Naked Turns . | . . . . . . . Heaviest Build 25 | 14 19 20 20 18 25 . Greatest Support 63 | 20 20 30 45 57 63 15 Greatest Overweight (x) 3 | . 1 . . . 3 . Average Overweight (x) . | . . . . . . . Largest Inventory Capacity 8 | 8 8 8 8 8 8 5 Average Capacity 7 | 6 8 8 8 8 6 5 Most Carried 8 | 2 8 8 8 8 8 5 Average Carried 7 | 1 6 7 7 7 6 5 Final Capacity 8 | 8 8 8 8 8 5 5 Final Carried 8 | 2 8 8 8 8 5 5 Class Distribution -------------------- 78% | Mutant 21% | Scavenger-Mutant Dominant Class ---------------- Mutant | -10/Materials Scavenger-Mutant | -9/Materials Mutant | -8/Materials Mutant | -7/Factory Mutant | -6/Factory Mutant | -6/Garrison Resources | -11 -10 -9 -8 -7 -6 -6 ----------- Run | Yrd Mat Mat Mat Fac Fac Gar Matter Collected 1364 | 222 145 325 373 . 299 . Remotely 351 | . . 157 103 . 91 . Salvage Created 1513 | . 237 384 473 . 419 . Parts 100 | . 13 29 26 . 32 . Haulers Intercepted 1 | . . . 1 . . . Recyclers Shooed 6 | . 1 2 . . 3 . Parts Field Recycled . | . . . . . . . Retrieved Matter . | . . . . . . . Parts Self-Destructed . | . . . . . . . Prevented . | . . . . . . . Kills | -11 -10 -9 -8 -7 -6 -6 ------- Run | Yrd Mat Mat Mat Fac Fac Gar Combat Hostiles Destroyed 30 | . 7 10 8 . 5 . Guns 29 | . 7 10 8 . 4 . Cannons 1 | . . . . . 1 . Classes Destroyed 10 | . 2 2 2 . 4 . Worker 4 | . . . . . 4 . Builder 1 | . . . . . 1 . Tunneler 1 | . . . . . 1 . Hauler 1 | . . . 1 . . . Recycler 2 | . . 1 . . 1 . Watcher 1 | . . . . . 1 . Swarmer 6 | . 2 4 . . . . Grunt 14 | . 5 4 3 . 2 . Sentry 6 | . . 2 4 . . . Hunter 4 | . . . 1 . 3 . Best Kill Streak 8 | . 2 6 4 . 8 . Combat Bots Only 5 | . 2 5 2 . 1 . Max Kills in Single Turn 7 | . 1 1 1 . 7 . Gunslinging . | . . . . . . . Exploded . | . . . . . . . Melee . | . . . . . . . Uniques/NPCs Destroyed . | . . . . . . . Combat | -11 -10 -9 -8 -7 -6 -6 -------- Run | Yrd Mat Mat Mat Fac Fac Gar Hostile Shots Fired 412 | . 37 37 43 . 186 109 Missed 133 | . 9 6 15 . 67 36 Damage Taken 3818 | . 326 493 404 . 1994 601 Core 1103 | . 61 104 79 . 304 555 Absorbed by Shields 64 | . . . . . . 64 Core Remaining (%) 86 | 100 75 74 85 100 . . Volleys Fired 122 | . 27 22 26 . 47 . Largest 2 | . 2 2 2 . 2 . Hottest 81 | . 46 46 51 . 81 . Shots Fired 231 | . 54 44 52 . 81 . Gun 212 | . 54 44 52 . 62 . Cannon 19 | . . . . . 19 . Launcher . | . . . . . . . Special . | . . . . . . . Kinetic 231 | . 54 44 52 . 81 . Thermal . | . . . . . . . Explosive . | . . . . . . . Electromagnetic . | . . . . . . . Robot Hit Streak 20 | . 7 8 20 . 11 . Robot Miss Streak 5 | . 3 5 3 . 3 . Penetration Max 1 | . . . . . 1 . Secondary Targets 4 | . 1 3 . . . . Max Gunslinging Chain 1 | . 1 1 . . . . Shots Hit Robots 155 | . 33 25 38 . 59 . Core Hits 78 | . 11 18 19 . 29 1 Critical Kills 3 | . 1 . 1 . 1 . Critical Parts Destroyed 1 | . . . . . 1 . Critical Strikes 5 | . 1 . 1 . 3 . Destroy 4 | . 1 . 1 . 2 . Blast 1 | . . . . . 1 . Melee Attacks 1 | . . . 1 . . . Impact 1 | . . . 1 . . . Slashing . | . . . . . . . Piercing . | . . . . . . . Sneak Attacks . | . . . . . . . Combat Hostiles . | . . . . . . . Follow-up Attacks . | . . . . . . . Damage Inflicted 3332 | . 493 372 640 . 1803 24 Guns 2302 | . 493 372 636 . 801 . Cannons 408 | . . . . . 408 . Explosions 577 | . . . . . 577 . Melee . | . . . . . . . Ramming 45 | . . . 4 . 17 24 Kinetic 2710 | . 493 372 636 . 1209 . Thermal 577 | . . . . . 577 . Explosive . | . . . . . . . Electromagnetic . | . . . . . . . Impact . | . . . . . . . Slashing . | . . . . . . . Piercing . | . . . . . . . Highest Corruption 2 | . . . . . 2 2 Average Corruption 1 | . . . . . 1 2 Corruption Purged . | . . . . . . . Corruption Blocked . | . . . . . . . Effects 1 | . . . . . . 1 Matter Fused 1 | . . . . . . 1 Overload Shots . | . . . . . . . Overflow Damage 43 | . . . . . 43 . Projectiles . | . . . . . . . Explosions 43 | . . . . . 43 . Melee . | . . . . . . . Knockbacks 6 | . . . . . 6 . Impact . | . . . . . . . Kinetic 5 | . . . . . 5 . Secondary 1 | . . . . . 1 . Self-Inflicted Damage 11 | . . . . . . 11 Shots . | . . . . . . . Rammed 5 | . . . . . . 5 Targets Rammed 12 | . . . 1 . 6 5 Kicked 7 | . . . 1 . 6 . Crushed . | . . . . . . . Highest Temperature 66 | . 27 22 1 . 66 . Average Temperature 16 | . 9 6 1 . 31 . Received Heat Transfer 922 | . 159 141 126 . 384 112 Siege Activations . | . . . . . . . Robots Corrupted . | . . . . . . . Combat Hostiles . | . . . . . . . Parts Fried . | . . . . . . . Impact Corruptions . | . . . . . . . Robots Melted . | . . . . . . . Combat Hostiles . | . . . . . . . Parts Melted . | . . . . . . . Heat Transferred 400 | . . . . . 400 . Parts Sabotaged . | . . . . . . . Parts Stolen . | . . . . . . . Parts Stripped . | . . . . . . . Power Chain Reactions . | . . . . . . . Alert | -11 -10 -9 -8 -7 -6 -6 ------- Run | Yrd Mat Mat Mat Fac Fac Gar Peak Influence 361 | . 176 361 261 77 297 225 Initial 210 | . . 5 152 77 37 210 Average 138 | . 79 217 186 77 87 214 Maximum Alert Level 1 | . . 1 1 . 1 1 Low Security (%) 72 | 100 100 23 65 100 84 . Level 1 27 | . . 76 34 . 15 100 Level 2 . | . . . . . . . Level 3 . | . . . . . . . Level 4 . | . . . . . . . Level 5 . | . . . . . . . High Security . | . . . . . . . Max Security . | . . . . . . . Squads Dispatched 7 | . . 1 2 . 4 . Investigation 1 | . . . 1 . . . Extermination 1 | . . . . . 1 . Reinforcement 5 | . . 1 1 . 3 . Assault . | . . . . . . . Garrison . | . . . . . . . Intercept . | . . . . . . . Searches Triggered . | . . . . . . . Construction Impeded 1 | . . . . . 1 . Haulers Reinforced 1 | . . . . . 1 . Active Scanning Responses . | . . . . . . . Cargo Convoy Interrupts . | . . . . . . . Stealth | -11 -10 -9 -8 -7 -6 -6 --------- Run | Yrd Mat Mat Mat Fac Fac Gar Distress Signals 3 | . 1 . 2 . . . Communications Jammed . | . . . . . . . Distress Signals . | . . . . . . . Times Spotted 72 | . 10 17 18 . 21 6 Peak Tracking Total 6 | . 4 6 6 . 6 6 Tactical Retreats 6 | . 1 2 1 . 2 . Traps | -11 -10 -9 -8 -7 -6 -6 ------- Run | Yrd Mat Mat Mat Fac Fac Gar Traps Triggered 7 | . 2 1 3 . . 1 Indirectly . | . . . . . . . Trap Hack Attempts . | . . . . . . . Triggered . | . . . . . . . Disarmed . | . . . . . . . Reprogrammed . | . . . . . . . Reused . | . . . . . . . Traps Extracted . | . . . . . . . Installed . | . . . . . . . Triggered . | . . . . . . . Machines | -11 -10 -9 -8 -7 -6 -6 ---------- Run | Yrd Mat Mat Mat Fac Fac Gar Machines Disabled 12 | . . . . . 12 . Max in Single Turn 12 | . . . . . 12 . Garrison Access 1 | . . . 1 . . . Machines Repaired . | . . . . . . . Machines Dismantled . | . . . . . . . Machines Sabotaged . | . . . . . . . Overloaded Fab Kills . | . . . . . . . Hacking | -11 -10 -9 -8 -7 -6 -6 --------- Run | Yrd Mat Mat Mat Fac Fac Gar Machines Accessed 5 | . 1 1 2 . 1 . Terminals 3 | . 1 1 1 . . . Fabricators . | . . . . . . . Repair Stations . | . . . . . . . Recycling Units . | . . . . . . . Scanalyzers . | . . . . . . . Garrison Access 2 | . . . 1 . 1 . Total Hacks 11 | . 1 3 4 . 3 . Successful 4 | . . 2 1 . 1 . Failed 7 | . 1 1 3 . 2 . Catastrophic 1 | . 1 . . . . . Database Lockouts . | . . . . . . . Manual 5 | . . 2 3 . . . Terminals 7 | . 1 3 3 . . . Fabricators . | . . . . . . . Repair Stations . | . . . . . . . Recycling Units . | . . . . . . . Scanalyzers . | . . . . . . . Garrison Access 4 | . . . 1 . 3 . Terminal Hacks 1 | . . 1 . . . . Dispatch Records 1 | . . 1 . . . . Fabricator Hacks . | . . . . . . . Repair Station Hacks . | . . . . . . . Recycling Unit Hacks . | . . . . . . . Scanalyzer . | . . . . . . . Garrison Access Hacks 2 | . . . 1 . 1 . Unlock Access 1 | . . . . . 1 . Seal Access 1 | . . . 1 . . . Unauthorized Hacks 1 | . . 1 . . . . Terminals 1 | . . 1 . . . . Botnet 1 | . . 1 . . . . Fabricators . | . . . . . . . Repair Stations . | . . . . . . . Recycling Units . | . . . . . . . Scanalyzers . | . . . . . . . Garrison Access . | . . . . . . . Data Cores Recovered . | . . . . . . . Used . | . . . . . . . Hacking Detections 3 | . 1 . 1 . 1 . Full Trace Events . | . . . . . . . Feedback Events . | . . . . . . . Feedback Blocked . | . . . . . . . Robot Schematics Acquired . | . . . . . . . Robots Built . | . . . . . . . Authchips . | . . . . . . . Time . | . . . . . . . Total Robot Build Rating . | . . . . . . . Part Schematics Acquired . | . . . . . . . Parts Built . | . . . . . . . Authchips . | . . . . . . . Time . | . . . . . . . Total Part Build Rating . | . . . . . . . Parts Repaired . | . . . . . . . Time . | . . . . . . . Parts Recycled . | . . . . . . . Recycled Matter . | . . . . . . . Retrieved Matter . | . . . . . . . Retrieved Components . | . . . . . . . Parts Scanalyzed . | . . . . . . . Part Schematics Acquired . | . . . . . . . Parts Damaged . | . . . . . . . Bothacking | -11 -10 -9 -8 -7 -6 -6 ------------ Run | Yrd Mat Mat Mat Fac Fac Gar Used RIF Installer . | . . . . . . . Robots Hacked . | . . . . . . . Non-combat . | . . . . . . . Combat . | . . . . . . . Robot Hacks Applied . | . . . . . . . Relay Couplers Released . | . . . . . . . Fabnet Peak Effective % . | . . . . . . . Robots Rewired . | . . . . . . . Allies Hacked . | . . . . . . . Hacks Repelled . | . . . . . . . Allies | -11 -10 -9 -8 -7 -6 -6 -------- Run | Yrd Mat Mat Mat Fac Fac Gar Total Allies . | . . . . . . . Largest Group . | . . . . . . . Highest-Rated Group . | . . . . . . . Highest-Rated Ally . | . . . . . . . Total Orders . | . . . . . . . Ally Attacks . | . . . . . . . Total Damage . | . . . . . . . Kills . | . . . . . . . Allies Corrupted . | . . . . . . . Allies Melted . | . . . . . . . Intel | -11 -10 -9 -8 -7 -6 -6 ------- Run | Yrd Mat Mat Mat Fac Fac Gar Robot Analysis Total . | . . . . . . . Derelict Logs Recovered . | . . . . . . . Drone Launches . | . . . . . . . Drone Recoveries . | . . . . . . . Exploration | -11 -10 -9 -8 -7 -6 -6 ------------- Run | Yrd Mat Mat Mat Fac Fac Gar Turns Passed 2581 | 56 442 378 877 193 598 37 Spaces Moved 1543 | 39 235 229 486 168 358 28 Core 12 | 2 . . . . 1 9 Treads . | . . . . . . . Legs 1531 | 37 235 229 486 168 357 19 Wheels . | . . . . . . . Hover . | . . . . . . . Flight . | . . . . . . . Fastest Speed 50 | 50 120 120 120 112 112 50 Average Speed 117 | 116 121 120 120 112 115 97 Slowest Speed 200 | 120 190 120 120 112 200 120 Overloaded Moves . | . . . . . . . Propulsion Burnouts . | . . . . . . . Robots Hopped . | . . . . . . . Cave-ins Triggered . | . . . . . . . Exploration Rate (%) 21 | 3 43 32 40 7 12 11 Regions Visited 6 Branch Regions . Pre-discovered Areas . | . . . . . . . Known Exits Taken 3 | . . . 1 1 1 . Unknown Exits Taken 3 | 1 1 1 . . . . Scrap Searched . | . . . . . . . Spaces Dug 1 | . . . 1 . . . Terrain Destroyed 17 | . . . 1 . 16 . Melee 1 | . . . 1 . . . Projectile . | . . . . . . . AOE 16 | . . . . . 16 . Terrain Rammed . | . . . . . . . Walls Destroyed . | . . . . . . . Machines Disabled . | . . . . . . . Actions | -11 -10 -9 -8 -7 -6 -6 --------- Run | Yrd Mat Mat Mat Fac Fac Gar Total 2083 | 46 342 295 725 173 464 38 Wait 268 | . 43 26 179 . 20 . Move 1538 | 38 234 228 485 167 358 28 Hop . | . . . . . . . Pick Up 26 | 2 11 2 4 2 5 . Fast Attach 34 | 6 7 4 8 . 9 . Attach 8 | . . 3 1 2 2 . Detach 3 | . . 2 . . 1 . Swap 26 | . 7 3 10 1 5 . Drop 41 | . 13 5 10 1 11 1 Fire 122 | . 27 22 26 . 47 . Melee 1 | . . . 1 . . . Ram 5 | . . . . . . 5 Kick 7 | . . . 1 . 6 . Crush . | . . . . . . . Escape Stasis 4 | . . . . . . 4 Rewire . | . . . . . . . Trap . | . . . . . . . Miscellaneous . | . . . . . . . Route ------- -11/Scrapyard -10/Materials (discovered 2 exits: *Mat / [*Min]) -9/Materials -8/Materials -7/Factory -6/Factory -6/Garrison History --------- Turn | Location | Event 19 | -11/Scrapyard | Discovered new exit (range 15) 57 | -11/Scrapyard | Entered Materials 272 | -10/Materials | Discovered new exit (range 14) 308 | -10/Materials | Build established: Mutant 434 | -10/Materials | Discovered new exit (range 7) 499 | -10/Materials | Entered another Materials area 499 | -9/Materials | Evolved 2 slots: Propulsion x1, Utility x1 856 | -9/Materials | Discovered new exit (range 17) 877 | -9/Materials | Entered another Materials area 877 | -8/Materials | Evolved 2 slots: Utility x2 1748 | -8/Materials | Discovered new exit (range 5) 1752 | -8/Materials | Identified exit to Factory 1754 | -8/Materials | Entered Factory 1754 | -7/Factory | Evolved 2 slots: Propulsion x1, Utility x1 1920 | -7/Factory | Discovered new exit (range 13) 1945 | -7/Factory | Identified exit to Factory 1947 | -7/Factory | Entered another Factory area 1947 | -6/Factory | Evolved 2 slots: Utility x2 2335 | -6/Factory | Lost 5 parts (1p2n2u) 2464 | -6/Factory | Spotted B-75 Beast 2487 | -6/Factory | Lost 4 parts (1n2u1w) 2545 | -6/Factory | Identified exit to Garrison 2545 | -6/Factory | Entered Garrison 2565 | -6/Garrison | Triggered checkpoint 2571 | -6/Garrison | Lost 5 parts (1p2n1u1w) 2571 | -6/Garrison | Core integrity fell below 50% 2579 | -6/Garrison | Core integrity fell below 20% 2582 | -6/Garrison | Destroyed by Y-54 Guardian with Gatling Laser Last Messages --------------- 02540_ Targeting Computer destroyed. 02541_ Subcomponent Replicator disabled. 02545_ Connecting with Garrison Access... >>Unlock Access door unlocked. 02545_ EXIT=UNLOCKED: GARRISON LOCATION=GARRISON GOAL=ESCAPE 02568_ System corrupted: Matter fused (-7). 02568_ Dropped Carbon-fiber Leg. 02569_ Triggered Stasis Trap. 02569_ A bubble of rippling energy engulfs the area. 02569_ Field strength at 94. 02569_ Field strength at 73. 02570_ Field strength at 62. 02571_ Field strength at 38. 02572_ Field strength at 29. 02573_ Stasis field depleted. 02575_ Imp. Targeting Computer destroyed. 02577_ Slammed into S-27 Virus. Map ----- +----------------------------------------------------+ | ?????????????????????????????????????????????????? | | ?????????????????????????????????????????????????? | | ?????????????????????????????????????????????????? | | ?????????????????????????????????????????????????? | | ?????????????????????????????????????????????????? | | ?????????????????????????????????????????????????? | | ?????????????????????????????????????????????????? | | ?????????????????????????????????????????????????? | | ?????????????????????????????????????????????????? | | ?????????????????????????????????????????????????? | | ??????????????????????????????????????####???????? | | ?????????????????????????????????????? ##??????? | | ?????????????????????????????????????## #??????? | | ?????????????????????????????????????? #??????? | | ??????????????????????????????????????? ???????? | | ???????????????????????????????????????# #???????? | | ??????????????????###################### ######### | | ???????????????? | | ???????????????? | | ???????????????? | | ????????????????????#++############ ############ | | ??????????????????????????????????# #??????????# | | ??????????????????????????????????# #??????????## | | ????????????????????##+############ #???????????? | | ????????????????????# s s =s #???????????? | | ????????????????????# s @ YY #???????????? | | ????????????????????## ##### #####???????????? | | ????????????????????#"""""#??# #???????????????? | | ????????????????????#######??#####???????????????? | | ?????????????????????????????????????????????????? | | ?????????????????????????????????????????????????? | | ?????????????????????????????????????????????????? | | ?????????????????????????????????????????????????? | | ?????????????????????????????????????????????????? | | ?????????????????????????????????????????????????? | | ?????????????????????????????????????????????????? | | ?????????????????????????????????????????????????? | | ?????????????????????????????????????????????????? | | ?????????????????????????????????????????????????? | | ?????????????????????????????????????????????????? | | ?????????????????????????????????????????????????? | | ?????????????????????????????????????????????????? | | ?????????????????????????????????????????????????? | | ?????????????????????????????????????????????????? | | ?????????????????????????????????????????????????? | | ?????????????????????????????????????????????????? | | ?????????????????????????????????????????????????? | | ?????????????????????????????????????????????????? | | ?????????????????????????????????????????????????? | | ?????????????????????????????????????????????????? | +----------------------------------------------------+ Best States ------------- Heat Dissipation 37 Energy Generation 18 Energy Capacity 280 Matter Stores 294 Matter Capacity 300 Sight Range 22 Terrain Scan Density 10 Evasion (%) 55 Targeting Accuracy 21 Particle Charging 20 Item Schematics ----------------- None Robot Schematics ------------------ None Fabricated ------------ Nothing Alien Tech Used ----------------- None Achievements -------------- None Challenges ------------ None Game ------ Seed CloakWeightBroadsword Manual? 0 Play Time 00:22:31 Cumulative 49.8 hours Start 2024.10.27 @ 02:34:36 End 2024.10.27 @ 10:54:43 Sessions 3 Manual Loads 0 Difficulty Rogue Special Mode None Game No. 87 Rogue 87 Adventurer 0 Explorer 0 Win Type - Total 1 Types 1/0/0/0/0/0/0/0/0 Lore% 35 Gallery% 47 Achievement% 41 Wizard Run 0 Options --------- Layout 0 ASCII 0 Keyboard 1 Movement Numpad Keybinds 0 Fullscreen 2 Font 24/Terminus Map View 76x50 Zoom Use 0% Tactical HUD 1 Map Filters NONE Filters NONE Steam 1 RUN: cf77bb87-0170-4239-9e08-32cf9250aa52